[Event "Titled Tuesday Blitz September 27 Early 2022"]
[White "Matinian, Nikita"]
[Black "Zilleruelo Irizarry, Diego"]
[WhiteFideId "24129100"]
[BlackFideId "3101460"]
[WhiteElo "2422"]
[BlackElo "1998"]
[Result "0-1"]
[Round "01"]
[TimeControl "180+1"]
[Date "2022.09.27"]
[WhiteClock "0:00:16"]
[BlackClock "0:00:12"]

1. e4 {[%clk 0:03:00]}  c6 {[%clk 0:02:59]} 2. d4 {[%clk 0:03:00]}  d5 {[%clk 0:03:00]} 3. e5 {[%clk 0:03:00]}  c5 {[%clk 0:03:00]} 4. dxc5 {[%clk 0:03:00]}  e6 {[%clk 0:03:00]} 5. a3 {[%clk 0:03:00]}  Bxc5 {[%clk 0:02:59]} 6. b4 {[%clk 0:02:58]}  Bb6 {[%clk 0:02:58]} 7. Qg4 {[%clk 0:02:55]}  Ne7 {[%clk 0:02:57]} 8. Qxg7 {[%clk 0:02:53]}  Rg8 {[%clk 0:02:56]} 9. Qxh7 {[%clk 0:02:53]}  Nbc6 {[%clk 0:02:54]} 10. Nf3 {[%clk 0:02:53]}  Nd4 {[%clk 0:02:47]} 11. Be3 {[%clk 0:02:36]}  Nxf3+ {[%clk 0:02:29]} 12. gxf3 {[%clk 0:02:36]}  Bd7 {[%clk 0:02:19]} 13. Bd3 {[%clk 0:02:34]}  Bxe3 {[%clk 0:02:16]} 14. fxe3 {[%clk 0:02:35]}  Qc7 {[%clk 0:02:16]} 15. f4 {[%clk 0:02:30]}  Ba4 {[%clk 0:01:59]} 16. h4 {[%clk 0:02:13]}  Qb6 {[%clk 0:01:55]} 17. Kf2 {[%clk 0:02:10]}  d4 {[%clk 0:01:53]} 18. e4 {[%clk 0:02:08]}  Bxc2 {[%clk 0:01:52]} 19. Rh3 {[%clk 0:02:01]}  Bxd3 {[%clk 0:01:48]} 20. Rxd3 {[%clk 0:02:02]}  O-O-O {[%clk 0:01:38]} 21. Nd2 {[%clk 0:02:02]}  Ng6 {[%clk 0:01:30]} 22. Nc4 {[%clk 0:01:56]}  Qb5 {[%clk 0:01:24]} 23. Rc1 {[%clk 0:01:56]}  Kb8 {[%clk 0:01:25]} 24. Kf3 {[%clk 0:01:45]}  Rh8 {[%clk 0:01:17]} 25. Qxf7 {[%clk 0:01:45]}  Nxh4+ {[%clk 0:01:17]} 26. Ke2 {[%clk 0:01:42]}  Ng2 {[%clk 0:01:15]} 27. Nd6 {[%clk 0:01:35]}  Qb6 {[%clk 0:00:51]} 28. Rc5 {[%clk 0:00:55]}  Rhf8 {[%clk 0:00:48]} 29. Qe7 {[%clk 0:00:25]}  Nxf4+ {[%clk 0:00:47]} 30. Kd2 {[%clk 0:00:25]}  Nxd3 {[%clk 0:00:46]} 31. Kxd3 {[%clk 0:00:26]}  Qa6+ {[%clk 0:00:34]} 32. Kxd4 {[%clk 0:00:26]}  Rfe8 {[%clk 0:00:27]} 33. Qc7+ {[%clk 0:00:25]}  Ka8 {[%clk 0:00:26]} 34. Ra5 {[%clk 0:00:24]}  Rxd6+ {[%clk 0:00:19]} 35. exd6 {[%clk 0:00:25]}  Qe2 {[%clk 0:00:17]} 36. Qc3 {[%clk 0:00:18]}  e5+ {[%clk 0:00:16]} 37. Rxe5 {[%clk 0:00:16]}  Rd8 {[%clk 0:00:12]} 38. Rd5 {[%clk 0:00:15]}  Qf2+ {[%clk 0:00:12]} 39. Qe3 {[%clk 0:00:14]}  Qb2+ {[%clk 0:00:12]} 40. Qc3 {[%clk 0:00:15]}  Qf2+ {[%clk 0:00:12]} 41. Kd3 {[%clk 0:00:15]}  Qf3+ {[%clk 0:00:12]} 42. Kd2 {[%clk 0:00:15]}  Qxe4 {[%clk 0:00:12]} 43. Qe3 {[%clk 0:00:16]}  Qxd5+ {[%clk 0:00:12]} 0-1


[Site "https://www.chess.com"]

[Event "Titled Tuesday Blitz September 27 Early 2022"]
[White "Melikhov, Evgeny V."]
[Black "Terzi, Alexei"]
[WhiteFideId "4122046"]
[BlackFideId "13505076"]
[WhiteElo "1963"]
[BlackElo "2031"]
[Result "0-1"]
[Round "01"]
[TimeControl "180+1"]
[Date "2022.09.27"]
[WhiteClock "0:00:04"]
[BlackClock "0:00:10"]

1. d4 {[%clk 0:02:45]}  Nf6 {[%clk 0:02:59]} 2. c4 {[%clk 0:02:40]}  e6 {[%clk 0:02:59]} 3. Nc3 {[%clk 0:02:39]}  d5 {[%clk 0:03:00]} 4. cxd5 {[%clk 0:02:36]}  exd5 {[%clk 0:03:00]} 5. Bg5 {[%clk 0:02:36]}  Be7 {[%clk 0:03:01]} 6. Qc2 {[%clk 0:02:34]}  O-O {[%clk 0:03:01]} 7. e3 {[%clk 0:02:34]}  c6 {[%clk 0:03:01]} 8. Bd3 {[%clk 0:02:34]}  Nbd7 {[%clk 0:03:01]} 9. Nf3 {[%clk 0:02:34]}  Re8 {[%clk 0:03:01]} 10. O-O {[%clk 0:02:34]}  Nf8 {[%clk 0:03:02]} 11. h3 {[%clk 0:02:34]}  Ng6 {[%clk 0:03:01]} 12. Ne5 {[%clk 0:02:33]}  Nd7 {[%clk 0:02:53]} 13. Bxe7 {[%clk 0:02:24]}  Qxe7 {[%clk 0:02:48]} 14. Nxg6 {[%clk 0:02:03]}  hxg6 {[%clk 0:02:44]} 15. Rab1 {[%clk 0:02:02]}  a6 {[%clk 0:02:22]} 16. b4 {[%clk 0:01:55]}  Qg5 {[%clk 0:02:20]} 17. a4 {[%clk 0:01:46]}  Nf6 {[%clk 0:02:12]} 18. f4 {[%clk 0:01:20]}  Qh4 {[%clk 0:02:01]} 19. Qf2 {[%clk 0:01:18]}  Qxf2+ {[%clk 0:01:52]} 20. Kxf2 {[%clk 0:01:18]}  Bf5 {[%clk 0:01:46]} 21. Rfd1 {[%clk 0:01:12]}  b5 {[%clk 0:01:10]} 22. g4 {[%clk 0:00:55]}  Bxd3 {[%clk 0:01:01]} 23. Rxd3 {[%clk 0:00:55]}  Reb8 {[%clk 0:00:46]} 24. a5 {[%clk 0:00:53]}  Ne8 {[%clk 0:00:46]} 25. e4 {[%clk 0:00:44]}  Rd8 {[%clk 0:00:45]} 26. e5 {[%clk 0:00:43]}  f6 {[%clk 0:00:35]} 27. h4 {[%clk 0:00:38]}  Nc7 {[%clk 0:00:32]} 28. Kg3 {[%clk 0:00:36]}  Kf7 {[%clk 0:00:30]} 29. Nd1 {[%clk 0:00:34]}  fxe5 {[%clk 0:00:26]} 30. fxe5 {[%clk 0:00:33]}  Ne6 {[%clk 0:00:26]} 31. Rc1 {[%clk 0:00:30]}  Rac8 {[%clk 0:00:25]} 32. Ne3 {[%clk 0:00:28]}  Ke7 {[%clk 0:00:24]} 33. Rcc3 {[%clk 0:00:13]}  Rf8 {[%clk 0:00:21]} 34. Rc2 {[%clk 0:00:10]}  Kd7 {[%clk 0:00:19]} 35. Rf2 {[%clk 0:00:10]}  Rxf2 {[%clk 0:00:18]} 36. Kxf2 {[%clk 0:00:10]}  Rf8+ {[%clk 0:00:19]} 37. Kg3 {[%clk 0:00:11]}  Rf4 {[%clk 0:00:19]} 38. Nc2 {[%clk 0:00:10]}  Re4 {[%clk 0:00:18]} 39. Kf3 {[%clk 0:00:06]}  g5 {[%clk 0:00:17]} 40. h5 {[%clk 0:00:06]}  Nf4 {[%clk 0:00:16]} 41. Rd1 {[%clk 0:00:05]}  Ne6 {[%clk 0:00:15]} 42. Rd3 {[%clk 0:00:04]}  Rf4+ {[%clk 0:00:15]} 43. Kg3 {[%clk 0:00:04]}  Nf8 {[%clk 0:00:15]} 44. Ne3 {[%clk 0:00:03]}  Ne6 {[%clk 0:00:15]} 45. Nf5 {[%clk 0:00:04]}  Ke8 {[%clk 0:00:13]} 46. Rc3 {[%clk 0:00:03]}  Kd7 {[%clk 0:00:12]} 47. Rd3 {[%clk 0:00:03]}  Rf1 {[%clk 0:00:10]} 48. Rd2 {[%clk 0:00:02]}  Rb1 {[%clk 0:00:10]} 49. Rh2 {[%clk 0:00:01]}  Rb3+ {[%clk 0:00:10]} 50. Kg2 {[%clk 0:00:01]}  Rxb4 {[%clk 0:00:08]} 51. h6 {[%clk 0:00:01]}  Rb2+ {[%clk 0:00:08]} 52. Kg3 {[%clk 0:00:01]}  Rxh2 {[%clk 0:00:08]} 53. Kxh2 {[%clk 0:00:02]}  gxh6 {[%clk 0:00:09]} 54. Nxh6 {[%clk 0:00:03]}  Nxd4 {[%clk 0:00:09]} 55. Nf5 {[%clk 0:00:03]}  Nxf5 {[%clk 0:00:09]} 56. gxf5 {[%clk 0:00:03]}  b4 {[%clk 0:00:09]} 57. Kg3 {[%clk 0:00:04]}  b3 {[%clk 0:00:10]} 0-1


[Site "https://www.chess.com"]

[Event "Titled Tuesday Blitz September 27 Early 2022"]
[White "Mickiewicz, Piotr"]
[Black "Perez Ponsa, Federico"]
[WhiteFideId "1114891"]
[BlackFideId "117927"]
[WhiteElo "2246"]
[BlackElo "2604"]
[Result "0-1"]
[Round "01"]
[TimeControl "180+1"]
[Date "2022.09.27"]
[WhiteClock "0:00:02"]
[BlackClock "0:01:41"]

1. e4 {[%clk 0:02:47]}  c5 {[%clk 0:02:59]} 2. Nf3 {[%clk 0:02:45]}  d6 {[%clk 0:02:57]} 3. Bc4 {[%clk 0:02:43]}  Nf6 {[%clk 0:02:55]} 4. d3 {[%clk 0:02:43]}  Nc6 {[%clk 0:02:52]} 5. c3 {[%clk 0:02:40]}  a6 {[%clk 0:02:48]} 6. a4 {[%clk 0:02:37]}  Bg4 {[%clk 0:02:32]} 7. Nbd2 {[%clk 0:02:31]}  e6 {[%clk 0:02:32]} 8. Bb3 {[%clk 0:02:26]}  Be7 {[%clk 0:02:30]} 9. h3 {[%clk 0:02:22]}  Bh5 {[%clk 0:02:30]} 10. Nf1 {[%clk 0:02:21]}  d5 {[%clk 0:02:28]} 11. Qe2 {[%clk 0:02:14]}  c4 {[%clk 0:02:27]} 12. Bc2 {[%clk 0:02:07]}  cxd3 {[%clk 0:02:16]} 13. Bxd3 {[%clk 0:02:06]}  Ne5 {[%clk 0:02:16]} 14. g4 {[%clk 0:01:46]}  Nxd3+ {[%clk 0:02:09]} 15. Qxd3 {[%clk 0:01:45]}  dxe4 {[%clk 0:02:09]} 16. Qxd8+ {[%clk 0:01:34]}  Rxd8 {[%clk 0:02:10]} 17. Ne5 {[%clk 0:01:33]}  Bg6 {[%clk 0:02:06]} 18. Ng3 {[%clk 0:01:25]}  Bd6 {[%clk 0:02:05]} 19. Nc4 {[%clk 0:01:15]}  Bc7 {[%clk 0:02:00]} 20. Be3 {[%clk 0:01:05]}  Nd5 {[%clk 0:01:59]} 21. a5 {[%clk 0:01:00]}  f5 {[%clk 0:01:59]} 22. Bc5 {[%clk 0:00:47]}  f4 {[%clk 0:01:57]} 23. Ne2 {[%clk 0:00:42]}  f3 {[%clk 0:01:57]} 24. Nd4 {[%clk 0:00:39]}  Nf4 {[%clk 0:01:57]} 25. O-O-O {[%clk 0:00:30]}  e5 {[%clk 0:01:52]} 26. Nf5 {[%clk 0:00:20]}  Bxf5 {[%clk 0:01:50]} 27. gxf5 {[%clk 0:00:19]}  Nd3+ {[%clk 0:01:51]} 28. Rxd3 {[%clk 0:00:18]}  Rxd3 {[%clk 0:01:51]} 29. Ne3 {[%clk 0:00:12]}  Kf7 {[%clk 0:01:49]} 30. Kc2 {[%clk 0:00:10]}  Rhd8 {[%clk 0:01:50]} 31. Ng4 {[%clk 0:00:09]}  h5 {[%clk 0:01:48]} 32. Ne3 {[%clk 0:00:06]}  Rd2+ {[%clk 0:01:49]} 33. Kb3 {[%clk 0:00:06]}  Rxf2 {[%clk 0:01:49]} 34. Rg1 {[%clk 0:00:06]}  Re2 {[%clk 0:01:43]} 35. Rg5 {[%clk 0:00:02]}  f2 {[%clk 0:01:41]} 0-1


[Site "https://www.chess.com"]

[Event "Titled Tuesday Blitz September 27 Early 2022"]
[White "Mouhamad, Joachim"]
[Black "Arabidze, Meri"]
[WhiteFideId "656410"]
[BlackFideId "13604040"]
[WhiteElo "2147"]
[BlackElo "2335"]
[Result "1/2-1/2"]
[Round "01"]
[TimeControl "180+1"]
[Date "2022.09.27"]
[WhiteClock "0:00:07"]
[BlackClock "0:00:15"]

1. e4 {[%clk 0:02:59]}  c5 {[%clk 0:02:59]} 2. Nf3 {[%clk 0:02:59]}  e6 {[%clk 0:03:00]} 3. d4 {[%clk 0:02:58]}  cxd4 {[%clk 0:03:00]} 4. c3 {[%clk 0:02:58]}  dxc3 {[%clk 0:03:00]} 5. Nxc3 {[%clk 0:02:59]}  a6 {[%clk 0:03:00]} 6. Bc4 {[%clk 0:02:57]}  b5 {[%clk 0:02:59]} 7. Bb3 {[%clk 0:02:51]}  Nc6 {[%clk 0:02:59]} 8. O-O {[%clk 0:02:51]}  Bb7 {[%clk 0:02:59]} 9. Bf4 {[%clk 0:02:47]}  Be7 {[%clk 0:02:52]} 10. Qe2 {[%clk 0:02:41]}  Na5 {[%clk 0:02:43]} 11. Bc2 {[%clk 0:02:30]}  Nf6 {[%clk 0:02:43]} 12. Rfd1 {[%clk 0:02:27]}  Rc8 {[%clk 0:02:34]} 13. Rac1 {[%clk 0:02:27]}  Qb6 {[%clk 0:02:23]} 14. h3 {[%clk 0:02:22]}  h6 {[%clk 0:02:21]} 15. Bb1 {[%clk 0:02:21]}  Nc4 {[%clk 0:02:11]} 16. e5 {[%clk 0:02:00]}  Nd5 {[%clk 0:02:10]} 17. Bg3 {[%clk 0:01:57]}  O-O {[%clk 0:01:49]} 18. Ne4 {[%clk 0:01:56]}  Bc6 {[%clk 0:01:36]} 19. a3 {[%clk 0:01:53]}  f5 {[%clk 0:01:35]} 20. exf6 {[%clk 0:01:49]}  Nxf6 {[%clk 0:01:36]} 21. Nxf6+ {[%clk 0:01:31]}  Rxf6 {[%clk 0:01:36]} 22. Nd4 {[%clk 0:01:29]}  Bb7 {[%clk 0:01:19]} 23. Qd3 {[%clk 0:01:26]}  Rcf8 {[%clk 0:01:12]} 24. Qh7+ {[%clk 0:01:18]}  Kf7 {[%clk 0:01:12]} 25. Bh4 {[%clk 0:00:49]}  Nxb2 {[%clk 0:01:11]} 26. Bxf6 {[%clk 0:00:46]}  Bxf6 {[%clk 0:01:12]} 27. Nxe6 {[%clk 0:00:27]}  Nxd1 {[%clk 0:00:58]} 28. Rxd1 {[%clk 0:00:14]}  Qxe6 {[%clk 0:00:52]} 29. Bf5 {[%clk 0:00:13]}  Qc6 {[%clk 0:00:36]} 30. Rxd7+ {[%clk 0:00:12]}  Be7 {[%clk 0:00:36]} 31. Rxb7 {[%clk 0:00:08]}  Qxb7 {[%clk 0:00:14]} 32. Qg6+ {[%clk 0:00:07]}  Kg8 {[%clk 0:00:14]} 33. Qh7+ {[%clk 0:00:06]}  Kf7 {[%clk 0:00:14]} 34. Qg6+ {[%clk 0:00:06]}  Kg8 {[%clk 0:00:14]} 35. Qh7+ {[%clk 0:00:07]}  Kf7 {[%clk 0:00:15]} 1/2-1/2


[Site "https://www.chess.com"]

[Event "Titled Tuesday Blitz September 27 Early 2022"]
[White "Narayanan, Srinath"]
[Black "Peatman, Carter"]
[WhiteFideId "5018420"]
[BlackFideId "2096480"]
[WhiteElo "2459"]
[BlackElo "2479"]
[Result "1-0"]
[Round "01"]
[TimeControl "180+1"]
[Date "2022.09.27"]
[WhiteClock "0:00:43"]
[BlackClock "0:00:12"]

1. d4 {[%clk 0:02:56]}  Nf6 {[%clk 0:02:54]} 2. Bf4 {[%clk 0:02:53]}  d5 {[%clk 0:02:53]} 3. e3 {[%clk 0:02:51]}  e6 {[%clk 0:02:52]} 4. Nf3 {[%clk 0:02:49]}  Bd6 {[%clk 0:02:52]} 5. Bg3 {[%clk 0:02:44]}  O-O {[%clk 0:02:52]} 6. c4 {[%clk 0:02:44]}  dxc4 {[%clk 0:02:49]} 7. Bxc4 {[%clk 0:02:43]}  c5 {[%clk 0:02:42]} 8. dxc5 {[%clk 0:02:39]}  Bxc5 {[%clk 0:02:36]} 9. Qxd8 {[%clk 0:02:40]}  Rxd8 {[%clk 0:02:35]} 10. Nc3 {[%clk 0:02:41]}  a6 {[%clk 0:02:30]} 11. Ke2 {[%clk 0:02:31]}  b5 {[%clk 0:02:29]} 12. Bd3 {[%clk 0:02:27]}  Bb7 {[%clk 0:02:29]} 13. Rhd1 {[%clk 0:02:27]}  Nc6 {[%clk 0:02:15]} 14. a4 {[%clk 0:02:22]}  b4 {[%clk 0:02:04]} 15. Ne4 {[%clk 0:02:21]}  Be7 {[%clk 0:02:04]} 16. Rac1 {[%clk 0:02:15]}  Nd4+ {[%clk 0:00:37]} 17. Nxd4 {[%clk 0:02:11]}  Bxe4 {[%clk 0:00:38]} 18. Nc6 {[%clk 0:01:55]}  Bxd3+ {[%clk 0:00:38]} 19. Rxd3 {[%clk 0:01:54]}  Rxd3 {[%clk 0:00:37]} 20. Kxd3 {[%clk 0:01:16]}  Kf8 {[%clk 0:00:36]} 21. a5 {[%clk 0:01:13]}  Nd5 {[%clk 0:00:32]} 22. e4 {[%clk 0:01:10]}  Bg5 {[%clk 0:00:32]} 23. Rc4 {[%clk 0:01:04]}  Nf4+ {[%clk 0:00:14]} 24. Bxf4 {[%clk 0:00:53]}  Bxf4 {[%clk 0:00:15]} 25. e5 {[%clk 0:00:48]}  f6 {[%clk 0:00:13]} 26. Rxf4 {[%clk 0:00:46]}  Kf7 {[%clk 0:00:13]} 27. Rxb4 {[%clk 0:00:44]}  fxe5 {[%clk 0:00:13]} 28. Ke4 {[%clk 0:00:43]}  Kf6 {[%clk 0:00:12]} 29. Rb7 {[%clk 0:00:43]} 1-0


[Site "https://www.chess.com"]

[Event "Titled Tuesday Blitz September 27 Early 2022"]
[White "Navarrete Mendez, Gonzalo Alberto"]
[Black "Zaichenko, Daria"]
[WhiteFideId "5106850"]
[BlackFideId "4197453"]
[WhiteElo "2261"]
[BlackElo "2039"]
[Result "1-0"]
[Round "01"]
[TimeControl "180+1"]
[Date "2022.09.27"]
[WhiteClock "0:00:17"]
[BlackClock "0:00:01"]

1. e4 {[%clk 0:02:59]}  c5 {[%clk 0:02:59]} 2. Nf3 {[%clk 0:02:58]}  Nc6 {[%clk 0:02:56]} 3. Nc3 {[%clk 0:02:58]}  g6 {[%clk 0:02:47]} 4. Bc4 {[%clk 0:02:57]}  Bg7 {[%clk 0:02:47]} 5. O-O {[%clk 0:02:57]}  e6 {[%clk 0:02:44]} 6. d4 {[%clk 0:02:56]}  cxd4 {[%clk 0:02:40]} 7. Nb5 {[%clk 0:02:56]}  d6 {[%clk 0:02:38]} 8. Bg5 {[%clk 0:02:55]}  Nge7 {[%clk 0:02:34]} 9. Nfxd4 {[%clk 0:02:55]}  Nxd4 {[%clk 0:02:34]} 10. Nxd4 {[%clk 0:02:55]}  a6 {[%clk 0:02:31]} 11. Bb3 {[%clk 0:02:54]}  O-O {[%clk 0:02:30]} 12. c3 {[%clk 0:02:54]}  h6 {[%clk 0:02:29]} 13. Bh4 {[%clk 0:02:54]}  g5 {[%clk 0:02:28]} 14. Bg3 {[%clk 0:02:54]}  Ng6 {[%clk 0:02:27]} 15. Qh5 {[%clk 0:02:52]}  Kh7 {[%clk 0:02:20]} 16. Rad1 {[%clk 0:02:48]}  Qe7 {[%clk 0:02:15]} 17. Nf3 {[%clk 0:02:40]}  e5 {[%clk 0:02:06]} 18. h4 {[%clk 0:02:25]}  g4 {[%clk 0:01:45]} 19. Ng5+ {[%clk 0:02:18]}  Kh8 {[%clk 0:01:40]} 20. Nxf7+ {[%clk 0:02:03]}  Rxf7 {[%clk 0:01:39]} 21. Qxg6 {[%clk 0:02:03]}  Rf6 {[%clk 0:01:35]} 22. Qh5 {[%clk 0:01:58]}  Bd7 {[%clk 0:01:32]} 23. f3 {[%clk 0:01:24]}  gxf3 {[%clk 0:01:26]} 24. Rxf3 {[%clk 0:01:24]}  Raf8 {[%clk 0:01:13]} 25. Rxf6 {[%clk 0:01:17]}  Qxf6 {[%clk 0:01:07]} 26. Qe2 {[%clk 0:01:15]}  Qg6 {[%clk 0:01:05]} 27. Kh2 {[%clk 0:01:13]}  Bg4 {[%clk 0:01:04]} 28. Qd3 {[%clk 0:01:00]}  Bxd1 {[%clk 0:01:03]} 29. Bxd1 {[%clk 0:01:01]}  Qe6 {[%clk 0:00:53]} 30. b3 {[%clk 0:00:54]}  Bf6 {[%clk 0:00:52]} 31. Qe2 {[%clk 0:00:48]}  Rg8 {[%clk 0:00:50]} 32. Qh5 {[%clk 0:00:47]}  Kh7 {[%clk 0:00:47]} 33. Be2 {[%clk 0:00:44]}  Rg6 {[%clk 0:00:44]} 34. Bf2 {[%clk 0:00:33]}  Qg8 {[%clk 0:00:36]} 35. g3 {[%clk 0:00:31]}  Qe6 {[%clk 0:00:19]} 36. Be3 {[%clk 0:00:27]}  b5 {[%clk 0:00:18]} 37. c4 {[%clk 0:00:26]}  b4 {[%clk 0:00:17]} 38. c5 {[%clk 0:00:26]}  dxc5 {[%clk 0:00:17]} 39. Bxc5 {[%clk 0:00:27]}  a5 {[%clk 0:00:15]} 40. Be3 {[%clk 0:00:26]}  Qc6 {[%clk 0:00:13]} 41. Bg4 {[%clk 0:00:22]}  Rg7 {[%clk 0:00:09]} 42. Qxh6+ {[%clk 0:00:19]}  Kg8 {[%clk 0:00:09]} 43. Bf5 {[%clk 0:00:19]}  Kf7 {[%clk 0:00:06]} 44. Qh5+ {[%clk 0:00:18]}  Ke7 {[%clk 0:00:06]} 45. Qf3 {[%clk 0:00:19]}  Qc2+ {[%clk 0:00:05]} 46. Kh3 {[%clk 0:00:19]}  Qb1 {[%clk 0:00:05]} 47. Bg4 {[%clk 0:00:18]}  Qc2 {[%clk 0:00:03]} 48. Bf2 {[%clk 0:00:18]}  Rf7 {[%clk 0:00:03]} 49. Qf5 {[%clk 0:00:18]}  Qc6 {[%clk 0:00:02]} 50. Be3 {[%clk 0:00:17]}  Qd6 {[%clk 0:00:01]} 51. Bg5 {[%clk 0:00:17]} 1-0


[Site "https://www.chess.com"]

[Event "Titled Tuesday Blitz September 27 Early 2022"]
[White "Nigmatov, Ortik"]
[Black "Sanchez Alvares, Kelvin Antonio"]
[WhiteFideId "14202131"]
[BlackFideId "3906680"]
[WhiteElo "2378"]
[BlackElo "2189"]
[Result "1-0"]
[Round "01"]
[TimeControl "180+1"]
[Date "2022.09.27"]
[WhiteClock "0:01:24"]
[BlackClock "0:01:33"]

1. e4 {[%clk 0:02:57]}  e5 {[%clk 0:02:53]} 2. Nf3 {[%clk 0:02:57]}  Nc6 {[%clk 0:02:53]} 3. Bc4 {[%clk 0:02:58]}  Bc5 {[%clk 0:02:53]} 4. c3 {[%clk 0:02:58]}  Nf6 {[%clk 0:02:53]} 5. d3 {[%clk 0:02:58]}  a5 {[%clk 0:02:52]} 6. O-O {[%clk 0:02:58]}  d6 {[%clk 0:02:52]} 7. Nbd2 {[%clk 0:02:57]}  O-O {[%clk 0:02:50]} 8. h3 {[%clk 0:02:57]}  Be6 {[%clk 0:02:50]} 9. Bb5 {[%clk 0:02:56]}  Qb8 {[%clk 0:02:49]} 10. a4 {[%clk 0:02:50]}  Qa7 {[%clk 0:02:48]} 11. Nc4 {[%clk 0:02:49]}  Ne7 {[%clk 0:02:44]} 12. d4 {[%clk 0:02:46]}  exd4 {[%clk 0:02:40]} 13. cxd4 {[%clk 0:02:46]}  Bb4 {[%clk 0:02:40]} 14. d5 {[%clk 0:01:54]}  Bd7 {[%clk 0:02:35]} 15. Bg5 {[%clk 0:01:50]}  Bxb5 {[%clk 0:02:30]} 16. axb5 {[%clk 0:01:49]}  Qc5 {[%clk 0:02:29]} 17. Rc1 {[%clk 0:01:44]}  Ng6 {[%clk 0:02:13]} 18. Bxf6 {[%clk 0:01:37]}  gxf6 {[%clk 0:02:14]} 19. Nd4 {[%clk 0:01:36]}  Rfe8 {[%clk 0:02:07]} 20. Ne3 {[%clk 0:01:31]}  Qb6 {[%clk 0:02:04]} 21. Ng4 {[%clk 0:01:30]}  Kg7 {[%clk 0:01:41]} 22. Nf5+ {[%clk 0:01:28]}  Kh8 {[%clk 0:01:41]} 23. Nxf6 {[%clk 0:01:28]}  Re5 {[%clk 0:01:37]} 24. Qh5 {[%clk 0:01:26]}  Nf8 {[%clk 0:01:33]} 25. Qxf7 {[%clk 0:01:24]} 1-0


[Site "https://www.chess.com"]

[Event "Titled Tuesday Blitz September 27 Early 2022"]
[White "Nogerbek, Kazybek"]
[Black "Mogranzini, Roberto"]
[WhiteFideId "13710427"]
[BlackFideId "810894"]
[WhiteElo "2458"]
[BlackElo "2469"]
[Result "1/2-1/2"]
[Round "01"]
[TimeControl "180+1"]
[Date "2022.09.27"]
[WhiteClock "0:00:31"]
[BlackClock "0:01:57"]

1. Nf3 {[%clk 0:03:00]}  c5 {[%clk 0:03:00]} 2. c3 {[%clk 0:02:58]}  g6 {[%clk 0:02:58]} 3. d4 {[%clk 0:02:59]}  cxd4 {[%clk 0:02:57]} 4. cxd4 {[%clk 0:02:58]}  d5 {[%clk 0:02:57]} 5. Nc3 {[%clk 0:02:55]}  Nf6 {[%clk 0:02:57]} 6. Bf4 {[%clk 0:02:56]}  Bg7 {[%clk 0:02:58]} 7. e3 {[%clk 0:02:39]}  O-O {[%clk 0:02:57]} 8. h3 {[%clk 0:02:40]}  Nc6 {[%clk 0:02:57]} 9. Bd3 {[%clk 0:02:17]}  Qb6 {[%clk 0:02:51]} 10. Qe2 {[%clk 0:02:10]}  Nb4 {[%clk 0:02:44]} 11. O-O {[%clk 0:01:24]}  Nxd3 {[%clk 0:02:43]} 12. Qxd3 {[%clk 0:01:23]}  Bf5 {[%clk 0:02:41]} 13. Qb5 {[%clk 0:01:19]}  Qxb5 {[%clk 0:02:41]} 14. Nxb5 {[%clk 0:01:19]}  a6 {[%clk 0:02:41]} 15. Nc3 {[%clk 0:01:19]}  Rac8 {[%clk 0:02:37]} 16. Be5 {[%clk 0:01:20]}  Rfd8 {[%clk 0:02:33]} 17. Rac1 {[%clk 0:01:20]}  Bf8 {[%clk 0:02:27]} 18. Na4 {[%clk 0:01:12]}  Ne4 {[%clk 0:02:24]} 19. Nb6 {[%clk 0:01:06]}  Rxc1 {[%clk 0:02:23]} 20. Rxc1 {[%clk 0:01:06]}  f6 {[%clk 0:02:22]} 21. Bh2 {[%clk 0:01:06]}  Kf7 {[%clk 0:02:21]} 22. Rc7 {[%clk 0:01:04]}  Nd6 {[%clk 0:02:16]} 23. Bxd6 {[%clk 0:01:01]}  Rxd6 {[%clk 0:02:17]} 24. Rxb7 {[%clk 0:01:00]}  Rc6 {[%clk 0:02:03]} 25. Na4 {[%clk 0:00:33]}  Rc1+ {[%clk 0:01:57]} 26. Kh2 {[%clk 0:00:32]}  Rc2 {[%clk 0:01:57]} 27. Kg1 {[%clk 0:00:31]} 1/2-1/2


[Site "https://www.chess.com"]

[Event "Titled Tuesday Blitz September 27 Early 2022"]
[White "Nygren, Kim"]
[Black "Kevlishvili, Robby"]
[WhiteFideId "1706136"]
[BlackFideId "1040634"]
[WhiteElo "2209"]
[BlackElo "2585"]
[Result "0-1"]
[Round "01"]
[TimeControl "180+1"]
[Date "2022.09.27"]
[WhiteClock "0:00:20"]
[BlackClock "0:01:07"]

1. e4 {[%clk 0:02:55]}  c6 {[%clk 0:02:59]} 2. Nc3 {[%clk 0:02:51]}  d5 {[%clk 0:02:59]} 3. d4 {[%clk 0:01:20]}  dxe4 {[%clk 0:02:56]} 4. Nxe4 {[%clk 0:00:54]}  Nf6 {[%clk 0:02:53]} 5. Nxf6+ {[%clk 0:00:54]}  exf6 {[%clk 0:02:54]} 6. Bc4 {[%clk 0:00:54]}  Bd6 {[%clk 0:02:54]} 7. Ne2 {[%clk 0:00:53]}  Qc7 {[%clk 0:02:54]} 8. h3 {[%clk 0:00:51]}  Nd7 {[%clk 0:02:53]} 9. Be3 {[%clk 0:00:51]}  Nb6 {[%clk 0:02:53]} 10. Bb3 {[%clk 0:00:52]}  a5 {[%clk 0:02:53]} 11. a4 {[%clk 0:00:50]}  O-O {[%clk 0:02:48]} 12. Qd2 {[%clk 0:00:43]}  Re8 {[%clk 0:02:48]} 13. O-O {[%clk 0:00:42]}  Be6 {[%clk 0:02:48]} 14. Bxe6 {[%clk 0:00:40]}  Rxe6 {[%clk 0:02:49]} 15. b3 {[%clk 0:00:41]}  Rae8 {[%clk 0:02:48]} 16. Nf4 {[%clk 0:00:39]}  R6e7 {[%clk 0:02:41]} 17. Qxa5 {[%clk 0:00:37]}  Bxf4 {[%clk 0:02:31]} 18. Bxf4 {[%clk 0:00:38]}  Qxf4 {[%clk 0:02:31]} 19. Qxb6 {[%clk 0:00:38]}  g5 {[%clk 0:02:32]} 20. a5 {[%clk 0:00:38]}  h5 {[%clk 0:02:22]} 21. a6 {[%clk 0:00:37]}  bxa6 {[%clk 0:02:21]} 22. Qxc6 {[%clk 0:00:38]}  Qxd4 {[%clk 0:02:18]} 23. Rxa6 {[%clk 0:00:36]}  Re1 {[%clk 0:02:10]} 24. Ra1 {[%clk 0:00:26]}  R1e6 {[%clk 0:01:27]} 25. Qf3 {[%clk 0:00:23]}  g4 {[%clk 0:01:27]} 26. hxg4 {[%clk 0:00:24]}  hxg4 {[%clk 0:01:27]} 27. Qg3 {[%clk 0:00:23]}  f5 {[%clk 0:01:27]} 28. Rad1 {[%clk 0:00:23]}  Qh8 {[%clk 0:01:11]} 29. c4 {[%clk 0:00:20]}  Rh6 {[%clk 0:01:07]} 30. f3 {[%clk 0:00:21]}  Rh1+ {[%clk 0:01:06]} 31. Kf2 {[%clk 0:00:20]}  Qb2+ {[%clk 0:01:07]} 0-1


[Site "https://www.chess.com"]